bitfinex-derivatives/quotes_BTCF0:USTF0_20251215
["timestamp","ask_amount","ask_price","bid_price","bid_amount"]
[1765775173215,0.15947,89652.0,89651.0,0.004]
[1765775173520,0.15947,89642.0,89641.0,0.1185]
[1765775173722,0.15947,89642.0,89640.0,0.13146524]
[1765775174023,0.15947,89642.0,89638.0,0.09228]
[1765775174024,0.21032,89640.0,89639.0,0.01090375]
[1765775174224,0.21032,89640.0,89639.0,0.00016733]
[1765775176512,0.21032,89640.0,89639.0,0.00216733]
[1765775177728,0.21032,89640.0,89639.0,0.02937733]
[1765775178436,0.05085,89640.0,89639.0,0.05547733]
[1765775179125,0.05085,89640.0,89639.0,0.05447733]
[1765775179326,0.05085,89640.0,89639.0,0.05547733]
[1765775179529,0.05085,89645.0,89644.0,0.0615454]
[1765775180723,0.05085,89645.0,89644.0,0.0655454]
[1765775182027,0.05085,89650.0,89649.0,0.0591448]
[1765775182325,0.07559161,89650.0,89649.0,0.7564248]
[1765775182522,0.05085,89650.0,89649.0,0.7564248]
[1765775183225,0.05085,89650.0,89649.0,0.7584248]
[1765775183622,0.05085,89655.0,89654.0,0.0561742]
[1765775183828,0.07559169,89655.0,89654.0,0.0561742]
[1765775185434,0.07559169,89655.0,89654.0,0.0591742]
[1765775185636,0.07559169,89655.0,89654.0,0.0631742]
[1765775185836,0.05085,89655.0,89654.0,0.0631742]
[1765775186438,0.05085,89655.0,89654.0,0.1131742]
[1765775186833,0.00223071,89658.0,89655.0,0.0403]
[1765775187038,0.00223071,89658.0,89655.0,0.1403]
[1765775187240,0.00223071,89658.0,89655.0,0.3203]
[1765775188024,0.20773,89670.0,89669.0,0.0502523]
[1765775188230,0.15486201,89670.0,89669.0,0.7474923]
[1765775188535,0.20773,89670.0,89669.0,0.7474923]
[1765775189541,0.20773,89670.0,89669.0,0.7494923]
[1765775190132,0.20773,89670.0,89669.0,0.7504923]
[1765775190340,0.20773,89670.0,89669.0,0.7544923]
[1765775191439,0.2324346,89670.0,89669.0,0.7544923]
[1765775192234,0.2324346,89670.0,89669.0,0.7504923]
[1765775192443,0.2324346,89670.0,89669.0,0.7544923]
[1765775193147,0.2324346,89670.0,89669.0,0.7514923]
[1765775193450,0.2324346,89670.0,89669.0,0.7544923]
[1765775195342,0.2324346,89670.0,89669.0,0.7504923]
[1765775195550,0.2324346,89670.0,89669.0,0.7534923]
[1765775195941,0.2324346,89670.0,89669.0,0.7504923]
[1765775196146,0.2324346,89670.0,89669.0,0.7524923]
[1765775196549,0.2324346,89670.0,89669.0,0.7494923]
[1765775196749,0.2324346,89670.0,89669.0,0.7524923]
[1765775197652,0.2324346,89670.0,89669.0,0.7504923]
[1765775197853,0.2324346,89670.0,89669.0,0.7524923]
[1765775198246,0.2324346,89670.0,89669.0,0.7494923]
[1765775198447,0.2324346,89670.0,89669.0,0.0552523]
[1765775198650,0.2324346,89670.0,89669.0,0.2085323]
[1765775198844,0.2324346,89670.0,89669.0,0.2055323]
[1765775199051,0.2324346,89670.0,89669.0,0.005]
[1765775200154,0.2324346,89670.0,89669.0,0.01867]
[1765775200354,0.2324346,89670.0,89669.0,0.03178]
[1765775200852,0.2324346,89670.0,89669.0,0.03078]
[1765775201359,0.20773,89670.0,89669.0,0.03078]
[1765775201559,0.20773,89670.0,89669.0,0.02778]
[1765775201760,0.20773,89670.0,89669.0,0.03078]
[1765775202158,0.20773,89670.0,89669.0,0.002]
[1765775202352,0.20773,89670.0,89669.0,0.003]
[1765775202557,0.15909,89664.0,89663.0,0.13256]
[1765775204060,0.04637,89665.0,89661.0,0.00016733]
[1765775204061,0.15909,89662.0,89661.0,0.00016733]
[1765775204253,0.18375122,89662.0,89661.0,0.00016733]
[1765775204561,0.15909,89662.0,89661.0,0.00016733]
[1765775205251,0.18375819,89662.0,89661.0,0.00016733]
[1765775205756,0.18375819,89662.0,89661.0,0.00216733]
[1765775206157,0.02466819,89662.0,89661.0,0.001]
[1765775206361,0.15909,89641.0,89640.0,0.17627379]
[1765775206563,0.15909,89641.0,89640.0,0.7419759]
[1765775207775,0.15909,89641.0,89640.0,0.7440159]
[1765775207963,0.0809,89641.0,89640.0,0.7440159]
[1765775208268,0.20546,89645.0,89644.0,0.0438754]
[1765775209070,0.04637,89645.0,89644.0,0.0438754]
[1765775210067,0.04637,89645.0,89644.0,0.0458754]
[1765775210678,0.00016733,89649.0,89644.0,0.0458754]
[1765775210879,0.15909,89650.0,89649.0,0.16538]
[1765775212375,0.15909,89650.0,89649.0,0.1765348]
[1765775212675,0.15909,89650.0,89649.0,0.1785348]
[1765775213277,0.15909,89650.0,89649.0,0.1795348]
[1765775214084,0.15909,89650.0,89649.0,0.1785348]
[1765775214283,0.15909,89650.0,89649.0,0.1795348]
[1765775219681,0.22437,89650.0,89649.0,0.1795348]
[1765775220685,0.22437,89650.0,89649.0,0.003]
[1765775220875,0.22437,89650.0,89649.0,0.23412]
[1765775221076,0.22437,89650.0,89649.0,0.23512]
[1765775221683,0.15909,89650.0,89649.0,0.23512]
[1765775221880,0.00016733,89658.0,89657.0,0.23212]
[1765775221881,0.22555733,89658.0,89657.0,0.23212]
[1765775222079,0.24951821,89658.0,89657.0,0.2432738]
[1765775222482,0.24951821,89658.0,89657.0,0.23212]
[1765775224078,0.22539,89653.0,89652.0,0.2432743]
[1765775225181,0.22539,89653.0,89652.0,0.2452743]
[1765775225790,0.22539,89653.0,89652.0,0.2462743]
[1765775226286,0.22539,89653.0,89652.0,0.2482743]
[1765775226984,0.22539,89653.0,89652.0,0.2462743]
[1765775227282,0.22539,89653.0,89652.0,0.2442743]
[1765775227488,0.22539,89653.0,89652.0,0.2472743]
[1765775228490,0.22539,89653.0,89652.0,0.2432743]
[1765775228693,0.22539,89653.0,89652.0,0.2472743]
[1765775229296,0.22539,89653.0,89652.0,0.2452743]
[1765775229483,0.22539,89653.0,89652.0,0.2472743]
[1765775229683,0.22555733,89658.0,89657.0,0.2432738]
[1765775229895,0.24954139,89658.0,89657.0,0.9404738]
[1765775230894,0.24954139,89658.0,89657.0,0.9424738]
[1765775231893,0.24954139,89658.0,89657.0,0.9434738]
[1765775232488,0.13740139,89658.0,89657.0,0.9434738]
[1765775232689,0.24954139,89658.0,89657.0,0.9434738]
[1765775233991,0.24954139,89658.0,89657.0,0.9934738]
[1765775234802,0.24954139,89658.0,89657.0,0.9434738]
[1765775236687,0.24954139,89658.0,89657.0,0.9434338]
[1765775237796,0.24954139,89658.0,89657.0,0.9424338]
[1765775238000,0.24954139,89658.0,89657.0,0.9434338]
[1765775238694,0.02415139,89658.0,89657.0,0.9934338]
[1765775238899,0.00016733,89658.0,89657.0,0.9934338]
[1765775239101,0.29067,89675.0,89674.0,0.23212]
[1765775239297,0.31420198,89675.0,89674.0,0.23212]
[1765775240602,0.29067,89675.0,89674.0,0.23212]
[1765775240798,0.31419814,89675.0,89674.0,0.23212]
[1765775241008,0.31619814,89675.0,89674.0,0.23212]
[1765775241393,0.31719814,89675.0,89674.0,0.23212]
[1765775242088,0.31519814,89675.0,89674.0,0.23212]
[1765775242495,0.31519814,89675.0,89674.0,0.31936064]
[1765775243200,0.31419814,89675.0,89674.0,0.23312]
[1765775247305,0.31419814,89675.0,89674.0,0.32361642]
[1765775249710,0.31419814,89675.0,89674.0,0.32261642]
[1765775249908,0.31419814,89675.0,89674.0,0.32361642]
[1765775250899,0.31419814,89675.0,89674.0,0.32261642]
[1765775251099,0.31419814,89675.0,89674.0,0.32361642]
[1765775251306,0.31419814,89675.0,89674.0,0.32461642]
[1765775253507,0.31419814,89675.0,89674.0,0.36461642]
[1765775256512,0.31419814,89675.0,89674.0,0.67461642]
[1765775256710,0.31419814,89675.0,89674.0,0.32461642]
[1765775258504,0.31419814,89675.0,89674.0,0.37461642]
[1765775260303,0.24891814,89675.0,89674.0,0.37461642]
[1765775260803,0.24891814,89675.0,89674.0,0.09249642]
[1765775260998,0.24891814,89675.0,89674.0,0.002]
[1765775261815,0.24891814,89675.0,89674.0,0.001]
[1765775262411,0.21768,89667.0,89666.0,0.34612993]
[1765775262603,0.24120814,89667.0,89666.0,0.34612993]
[1765775263411,0.24120814,89667.0,89666.0,0.33497733]
[1765775263609,0.24120814,89667.0,89666.0,0.12156733]
[1765775263806,0.24120814,89667.0,89666.0,0.00116733]
[1765775264108,0.24120814,89667.0,89666.0,0.00216733]
[1765775265514,0.24120814,89667.0,89666.0,0.00116733]
[1765775266017,0.24120814,89667.0,89666.0,0.00016733]
[1765775266316,0.24220814,89667.0,89666.0,0.00016733]
[1765775266821,0.24320814,89667.0,89666.0,0.00016733]
[1765775267115,0.24220814,89667.0,89666.0,0.00016733]
[1765775267322,0.24420814,89667.0,89666.0,0.00016733]
[1765775268308,0.24320814,89667.0,89666.0,0.00016733]
[1765775268503,0.24420814,89667.0,89666.0,0.00016733]
[1765775268711,0.24320814,89667.0,89666.0,0.00016733]
[1765775269020,0.24220814,89667.0,89666.0,0.00016733]
[1765775269218,0.24320814,89667.0,89666.0,0.00016733]
[1765775269917,0.24220814,89667.0,89666.0,0.00016733]
[1765775270217,0.24320814,89667.0,89666.0,0.00016733]
[1765775272721,0.24220814,89667.0,89666.0,0.00016733]
[1765775272919,0.24320814,89667.0,89666.0,0.21457733]
[1765775273120,0.24220814,89667.0,89666.0,0.21457733]
[1765775274823,0.24220814,89667.0,89666.0,0.21557733]
[1765775275324,0.24120814,89667.0,89666.0,0.21557733]
[1765775277518,0.02352814,89667.0,89666.0,0.21557733]
[1765775277718,0.25747,89676.0,89675.0,0.20035]
[1765775277919,0.2809797,89676.0,89675.0,0.20035]
[1765775279029,0.2829797,89676.0,89675.0,0.20035]
[1765775280833,0.2809797,89676.0,89675.0,0.20035]
[1765775281035,0.2809797,89676.0,89675.0,0.20135]
[1765775281238,0.2809797,89676.0,89675.0,0.09684]
[1765775281740,0.2809797,89676.0,89675.0,0.20135]
[1765775283641,0.2809797,89676.0,89675.0,0.001]
[1765775284038,0.2809797,89676.0,89675.0,0.09684]
[1765775284240,0.2809797,89676.0,89675.0,0.20135]
[1765775285041,0.2809797,89676.0,89675.0,0.09584]
[1765775285232,0.2809797,89676.0,89675.0,0.09684]
[1765775286440,0.2809797,89676.0,89675.0,0.20135]
[1765775286740,0.2809797,89676.0,89675.0,0.09684]
[1765775287038,0.2809797,89676.0,89675.0,0.20135]
[1765775287539,0.2809797,89676.0,89675.0,0.20035]
[1765775287738,0.2809797,89676.0,89675.0,0.20135]
[1765775290541,0.2809797,89676.0,89675.0,0.20035]
[1765775290737,0.2809797,89676.0,89675.0,0.20135]
[1765775293639,0.2809797,89676.0,89675.0,0.20035]
[1765775293839,0.2809797,89676.0,89675.0,0.20135]
[1765775294243,0.2809797,89676.0,89675.0,0.20035]
[1765775294446,0.2809797,89676.0,89675.0,0.20135]
[1765775295039,0.2809797,89676.0,89675.0,0.20035]
[1765775295237,0.2809797,89676.0,89675.0,0.20135]
[1765775295640,0.2809797,89676.0,89675.0,0.20035]
[1765775295844,0.2809797,89676.0,89675.0,0.20135]
[1765775297144,0.2809797,89676.0,89675.0,0.20035]
[1765775297336,0.2809797,89676.0,89675.0,0.20135]
[1765775297932,0.2809797,89676.0,89675.0,0.09684]
[1765775298135,0.2809797,89676.0,89675.0,0.001]
[1765775298444,0.2809797,89676.0,89675.0,0.09684]
[1765775298645,0.2809797,89676.0,89675.0,0.20135]
[1765775300038,0.2809797,89676.0,89675.0,0.20035]
[1765775300247,0.2819797,89676.0,89675.0,0.20135]
[1765775300746,0.2819797,89676.0,89675.0,0.20035]
[1765775303250,0.25864,89673.0,89672.0,0.0111519]
[1765775303451,0.2821497,89673.0,89672.0,0.0111519]
[1765775303646,0.2821497,89673.0,89666.0,0.3430516]
[1765775303647,0.25642,89667.0,89666.0,0.3430516]
[1765775303849,0.2799297,89667.0,89666.0,0.3430516]
[1765775304048,0.2799297,89667.0,89666.0,0.21167003]
[1765775304952,0.2799297,89667.0,89666.0,0.21367003]
[1765775306345,0.2799297,89667.0,89666.0,0.21467003]
[1765775306550,0.2202397,89667.0,89666.0,0.21367003]
[1765775307154,0.2202397,89667.0,89666.0,0.21467003]
[1765775307744,0.2202397,89667.0,89666.0,0.21367003]
[1765775309055,0.22018616,89667.0,89666.0,0.21367003]
[1765775309355,0.22018616,89667.0,89666.0,0.21467003]
[1765775309654,0.02345616,89667.0,89666.0,0.21467003]
[1765775310048,0.02345616,89667.0,89666.0,0.21267003]
[1765775310248,0.11345616,89667.0,89666.0,0.21367003]
[1765775310957,0.11345616,89667.0,89666.0,0.21267003]
[1765775311160,0.11345616,89667.0,89666.0,0.21467003]
[1765775311450,0.20754616,89667.0,89666.0,0.21467003]
[1765775311957,0.02345616,89667.0,89666.0,0.21467003]
[1765775312547,0.02345616,89667.0,89666.0,0.21267003]
[1765775313042,0.02345616,89667.0,89666.0,0.21467003]
[1765775313655,0.02345616,89667.0,89666.0,0.21567003]
[1765775314356,0.11345616,89667.0,89666.0,0.21367003]
[1765775314657,0.11345616,89667.0,89666.0,0.21467003]
[1765775316345,0.11345616,89667.0,89666.0,0.21267003]
[1765775316657,0.11345616,89667.0,89666.0,0.21467003]
[1765775316861,0.09,89667.0,89666.0,0.21567003]
[1765775317057,0.09,89667.0,89666.0,0.21467003]
[1765775317553,0.09,89667.0,89666.0,0.21567003]
[1765775318146,0.18409,89667.0,89666.0,0.21567003]
[1765775318355,0.18409,89667.0,89666.0,0.21367003]
[1765775318546,0.18409,89667.0,89666.0,0.21467003]
[1765775318744,0.18409,89667.0,89666.0,0.21567003]
[1765775318951,0.18409,89667.0,89666.0,0.91259003]
[1765775319259,0.18409,89667.0,89666.0,0.90959003]
[1765775319452,0.18409,89667.0,89666.0,0.91159003]
[1765775319852,0.20754577,89667.0,89666.0,0.91159003]
[1765775320457,0.20754577,89667.0,89666.0,0.91059003]
[1765775320659,0.20754577,89667.0,89666.0,0.91159003]
[1765775321653,0.20754577,89667.0,89666.0,0.90959003]
[1765775321855,0.20754577,89667.0,89666.0,0.91159003]
[1765775322261,0.20754577,89667.0,89666.0,0.90959003]
[1765775322462,0.18409,89667.0,89666.0,0.91159003]
[1765775323455,0.18409,89667.0,89666.0,0.91059003]
[1765775323655,0.23934,89667.0,89666.0,0.21467003]
[1765775323854,0.23934,89667.0,89666.0,0.60607003]
[1765775324051,0.23934,89667.0,89666.0,0.64602354]
[1765775324654,0.23934,89667.0,89666.0,0.64502354]
[1765775324859,0.23934,89667.0,89666.0,0.64602354]
[1765775325256,0.23934,89667.0,89666.0,0.24347084]
[1765775325459,0.23934,89667.0,89666.0,0.20351733]
[1765775326064,0.23934,89667.0,89666.0,0.20251733]
[1765775326561,0.23934,89667.0,89666.0,0.20051733]
[1765775326767,0.23934,89667.0,89666.0,0.20151733]
[1765775329171,0.23934,89667.0,89666.0,0.20051733]
[1765775329370,0.23934,89667.0,89666.0,0.20151733]
[1765775331177,0.23934,89667.0,89666.0,0.20051733]
[1765775331376,0.23934,89667.0,89666.0,0.20151733]
[1765775331777,0.23934,89667.0,89666.0,0.20051733]
[1765775331977,0.23934,89667.0,89666.0,0.20151733]
[1765775332169,0.23934,89667.0,89666.0,0.20251733]
[1765775332370,0.23934,89667.0,89666.0,0.20151733]
[1765775332669,0.23934,89667.0,89666.0,0.20251733]
[1765775333371,0.23934,89667.0,89666.0,0.20151733]
[1765775334475,0.23934,89667.0,89666.0,0.20051733]
[1765775334676,0.23934,89667.0,89666.0,0.20151733]
[1765775337366,0.23475,89676.0,89675.0,0.1877816]
[1765775337569,0.1795,89676.0,89675.0,0.1877816]
[1765775337776,0.09081733,89683.0,89682.0,0.17663]
[1765775338480,0.17966733,89683.0,89682.0,0.17663]
[1765775339180,0.18066733,89683.0,89682.0,0.17663]
[1765775339370,0.18066733,89683.0,89682.0,0.18775548]
[1765775341578,0.00116733,89683.0,89682.0,0.18775548]
[1765775341778,0.00116733,89683.0,89682.0,0.23775548]
[1765775341983,0.00116733,89683.0,89682.0,0.90307548]
[1765775342181,0.23141,89697.0,89696.0,0.1877789]
[1765775342587,0.23141,89697.0,89696.0,0.17663]
[1765775343886,0.23841,89697.0,89696.0,0.17763]
[1765775344284,0.23841,89697.0,89696.0,0.09155]
[1765775344488,0.24641,89697.0,89696.0,0.001]
[1765775345487,0.24641,89697.0,89696.0,0.09155]
[1765775345678,0.24641,89697.0,89696.0,0.001]
[1765775345879,0.24641,89697.0,89688.0,0.00016723]
[1765775345880,0.1906498,89689.0,89688.0,0.00016723]
[1765775346185,0.04565,89680.0,89676.0,0.09055]
[1765775346381,0.23141,89665.0,89664.0,0.17663]
[1765775346582,0.23141,89665.0,89660.0,0.17663]
[1765775346583,0.1795,89661.0,89660.0,0.17663]
[1765775347476,0.1795,89661.0,89660.0,0.18730405]
[1765775348290,0.1795,89661.0,89660.0,0.19130405]
[1765775349086,0.09065,89661.0,89660.0,0.19130405]
[1765775349290,0.09065,89661.0,89660.0,0.19230405]
[1765775349491,0.1795,89661.0,89660.0,0.19230405]
[1765775349882,0.1795,89661.0,89660.0,0.18930405]
[1765775350484,0.1795,89661.0,89660.0,0.19030405]
[1765775351578,0.1795,89661.0,89660.0,0.18830405]
[1765775351782,0.1795,89661.0,89660.0,0.18930405]
[1765775352387,0.1795,89661.0,89660.0,0.18830405]
[1765775353787,0.1795,89661.0,89660.0,0.18730405]
[1765775353992,0.1795,89661.0,89660.0,0.18830405]
[1765775354388,0.09065,89661.0,89660.0,0.18830405]
[1765775354798,0.1795,89661.0,89660.0,0.18830405]
[1765775355591,0.1795,89661.0,89660.0,0.18930405]
[1765775356895,0.1795,89661.0,89660.0,0.17763]
[1765775358298,0.1795,89661.0,89660.0,0.17663]
[1765775358500,0.1795,89661.0,89660.0,0.17863]
[1765775359795,0.1795,89661.0,89660.0,0.17763]
[1765775360095,0.1795,89661.0,89660.0,0.17863]
[1765775360397,0.1795,89661.0,89660.0,0.18839683]
[1765775360594,0.1795,89661.0,89660.0,0.18939683]
[1765775360998,0.1795,89661.0,89660.0,0.18839683]
[1765775361191,0.1795,89661.0,89660.0,0.18939683]
[1765775362495,0.1795,89661.0,89660.0,0.18839683]
[1765775362696,0.1795,89661.0,89660.0,0.18939683]
[1765775363201,0.1795,89661.0,89660.0,0.10331683]
[1765775363499,0.1795,89661.0,89660.0,0.002]
[1765775363700,0.1795,89661.0,89652.0,0.0003047]
[1765775363701,0.1795,89653.0,89652.0,0.1880891]
[1765775364998,0.1795,89653.0,89652.0,0.19875868]
[1765775365892,0.1795,89653.0,89652.0,0.19975868]
[1765775366092,0.1795,89653.0,89652.0,0.20075868]
[1765775366295,0.1795,89653.0,89652.0,0.19975868]
[1765775366603,0.1795,89653.0,89652.0,0.20075868]
[1765775366804,0.1795,89653.0,89652.0,0.19975868]
[1765775367594,0.05191,89660.0,89659.0,0.17051]
[1765775367595,0.21967,89660.0,89659.0,0.17051]
[1765775367803,0.16776,89660.0,89659.0,0.17051]
[1765775368190,0.21818,89660.0,89659.0,0.17051]
[1765775368996,0.16776,89660.0,89659.0,0.17051]
[1765775369196,0.001,89660.0,89659.0,0.17051]
[1765775369405,0.002,89660.0,89659.0,0.17051]
[1765775369600,0.08338,89660.0,89659.0,0.17051]
[1765775369800,0.16138,89660.0,89659.0,0.17051]
[1765775370002,0.16238,89660.0,89659.0,0.17051]
[1765775370599,0.16038,89660.0,89659.0,0.17051]
[1765775370904,0.16038,89660.0,89659.0,0.17251]
[1765775372516,0.16038,89660.0,89659.0,0.17451]
[1765775373406,0.16038,89660.0,89659.0,0.17251]
[1765775373610,0.16038,89660.0,89659.0,0.17451]
[1765775374712,0.21126,89660.0,89659.0,0.17451]
[1765775376014,0.21126,89660.0,89659.0,0.17251]
[1765775376218,0.21126,89660.0,89659.0,0.17351]
[1765775376803,0.21126,89660.0,89659.0,0.17151]
[1765775377109,0.21126,89660.0,89659.0,0.17251]
[1765775378507,0.21126,89660.0,89659.0,0.002]
[1765775378717,0.21126,89660.0,89659.0,0.001]
[1765775378919,0.21126,89655.0,89654.0,0.86371]
[1765775379318,0.12988,89655.0,89652.0,0.01097428]
[1765775379519,0.12988,89655.0,89652.0,0.09563428]
[1765775379520,0.16038,89653.0,89652.0,0.09563428]
[1765775379715,0.16038,89653.0,89652.0,0.17776428]
[1765775381215,0.16038,89660.0,89659.0,0.16679]
[1765775381413,0.21126,89660.0,89659.0,0.1779435]
[1765775382521,0.23599273,89660.0,89659.0,0.1779435]
[1765775383124,0.23699273,89660.0,89659.0,0.1779435]
[1765775389439,0.21699273,89660.0,89659.0,0.1779435]
[1765775390632,0.16611273,89660.0,89659.0,0.1779435]
[1765775390836,0.02573273,89660.0,89659.0,0.1779435]
[1765775391036,0.10711273,89660.0,89659.0,0.1779435]
[1765775391237,0.18611273,89660.0,89659.0,0.1779435]
[1765775392640,0.002,89660.0,89659.0,0.4279435]
[1765775392842,0.002,89660.0,89659.0,0.1779435]
[1765775393140,0.18611262,89660.0,89659.0,0.1779435]
[1765775393635,0.23699262,89660.0,89659.0,0.1779435]
[1765775395630,0.23699262,89660.0,89659.0,0.16679]
[1765775399543,0.18611262,89660.0,89659.0,0.16679]
[1765775400751,0.00016723,89669.0,89668.0,0.2151024]
[1765775401054,0.16443,89684.0,89683.0,0.1696006]
[1765775401256,0.16443,89691.0,89690.0,0.1695997]
[1765775402856,0.16459723,89699.0,89698.0,0.1695987]
[1765775403540,0.08234723,89699.0,89698.0,0.1695987]
[1765775403943,0.16459723,89699.0,89698.0,0.1695987]
[1765775404558,0.1253832,89699.0,89698.0,0.1695987]
[1765775405044,0.1253832,89699.0,89698.0,0.18049063]
[1765775408754,0.0431332,89699.0,89698.0,0.18049063]
[1765775408963,0.08229092,89707.0,89706.0,0.1695977]
[1765775409462,0.12349412,89707.0,89706.0,0.1695977]
[1765775410252,0.13049412,89707.0,89706.0,0.1695977]
[1765775410849,0.13749412,89707.0,89706.0,0.1695977]
[1765775419867,0.13749412,89707.0,89706.0,0.0865677]
[1765775420076,0.13749412,89707.0,89706.0,0.0111477]
[1765775420462,0.13749412,89707.0,89706.0,0.0865677]
[1765775422074,0.13749412,89707.0,89706.0,0.1695977]
[1765775423170,0.13749412,89707.0,89698.0,0.01091101]
[1765775423171,0.03673,89705.0,89701.0,0.1695983]
[1765775423379,0.16443,89686.0,89685.0,0.27695]
[1765775423670,0.16443,89683.0,89671.0,0.011152]
[1765775423871,0.16443,89683.0,89675.0,0.0111515]
[1765775424369,0.16443,89683.0,89679.0,0.01113432]
[1765775424577,0.16443,89683.0,89678.0,0.0111511]
[1765775425671,0.16443,89683.0,89682.0,0.00216723]
[1765775426175,0.16443,89683.0,89682.0,0.16061723]
[1765775427278,0.16443,89683.0,89682.0,0.15861723]
[1765775427578,0.16443,89683.0,89682.0,0.00016723]
[1765775428079,0.16443,89683.0,89682.0,0.00116723]
[1765775429184,0.16443,89683.0,89682.0,0.00016723]
[1765775431866,0.16443,89683.0,89682.0,0.00116723]
[1765775432483,0.16443,89683.0,89682.0,0.08108723]
[1765775433079,0.16443,89683.0,89682.0,0.15914723]
[1765775435784,0.16443,89683.0,89682.0,0.00116723]
[1765775436284,0.16443,89683.0,89682.0,0.08108723]
[1765775438874,0.16443,89683.0,89682.0,0.15914723]
[1765775444685,0.16443,89683.0,89682.0,0.15814723]
[1765775444898,0.16443,89683.0,89682.0,0.15914723]
[1765775446312,0.16443,89683.0,89682.0,0.15814723]
[1765775446602,0.16443,89683.0,89682.0,0.15914723]
[1765775454612,0.16443,89683.0,89682.0,0.00116723]
[1765775456210,0.16543,89683.0,89682.0,0.00016723]
[1765775457209,0.16743,89683.0,89682.0,0.00016723]
[1765775459306,0.16543,89683.0,89682.0,0.00016723]
[1765775460505,0.16543,89683.0,89682.0,0.07728723]
[1765775460709,0.16543,89683.0,89682.0,0.00016723]
[1765775461302,0.16543,89683.0,89682.0,0.15196723]
[1765775461797,0.16543,89683.0,89682.0,0.00016723]
[1765775462811,0.16443,89683.0,89682.0,0.00016723]
[1765775463001,0.16543,89683.0,89682.0,0.00016723]
[1765775463602,0.16543,89683.0,89682.0,0.07728723]
[1765775466012,0.16543,89683.0,89682.0,0.00016723]
[1765775466310,0.16543,89683.0,89682.0,0.07728723]
[1765775466504,0.16543,89683.0,89682.0,0.00016723]
[1765775466905,0.16543,89683.0,89682.0,0.07728723]
[1765775467813,0.16543,89683.0,89682.0,0.15196723]
[1765775473311,0.16443,89683.0,89682.0,0.15196723]
[1765775474013,0.16443,89683.0,89682.0,0.15396723]
[1765775476015,0.16443,89683.0,89682.0,0.15296723]
[1765775489529,0.16443,89683.0,89682.0,0.18599723]
[1765775496328,0.13621,89693.0,89692.0,0.14108]
[1765775496529,0.13621,89700.0,89699.0,0.1522286]
[1765775496837,0.13621,89705.0,89704.0,0.14108]
[1765775498534,0.13821,89705.0,89704.0,0.14108]
[1765775499821,0.14021,89705.0,89704.0,0.14108]
[1765775502736,0.13621,89699.0,89698.0,0.1522286]
[1765775502933,0.13621,89699.0,89698.0,0.14108]
[1765775503134,0.13621,89694.0,89693.0,0.14108]
[1765775508338,0.13621,89687.0,89686.0,0.1522301]
[1765775508550,0.13621,89687.0,89686.0,0.14108]
[1765775509737,0.13621,89687.0,89686.0,0.14208]
[1765775509938,0.13621,89687.0,89686.0,0.14308]
[1765775510138,0.13621,89687.0,89686.0,0.14208]
[1765775510336,0.13621,89687.0,89686.0,0.14308]
[1765775510632,0.13621,89687.0,89686.0,0.14208]
[1765775511042,0.13621,89687.0,89686.0,0.07427]
[1765775512241,0.13621,89687.0,89686.0,0.14108]
[1765775529850,0.13621,89687.0,89686.0,0.14208]
[1765775530954,0.10082494,89700.0,89699.0,0.13513]
[1765775530955,0.13877,89700.0,89699.0,0.13513]
[1765775532147,0.13977,89700.0,89699.0,0.13513]
[1765775532760,0.14077,89700.0,89699.0,0.13513]
[1765775534446,0.14077,89700.0,89692.0,0.04246]
[1765775534447,0.03936,89700.0,89692.0,0.13513]
[1765775534660,0.03936,89700.0,89692.0,0.06638]
[1765775534661,0.13877,89693.0,89692.0,0.06638]
[1765775534855,0.13877,89693.0,89692.0,0.13513]
[1765775535561,0.13877,89693.0,89692.0,0.17759]
[1765775536268,0.13877,89700.0,89699.0,0.1462786]
[1765775538165,0.13977,89700.0,89699.0,0.1462786]
[1765775538563,0.14077,89700.0,89699.0,0.1462786]
[1765775541358,0.07032,89700.0,89699.0,0.1462786]
[1765775541558,0.002,89700.0,89699.0,0.1962786]
[1765775541968,0.002,89700.0,89699.0,0.23585402]
[1765775542369,0.002,89700.0,89699.0,0.1962786]
[1765775543365,0.07032,89700.0,89699.0,0.1462786]
[1765775544066,0.14077,89700.0,89699.0,0.1462786]
[1765775544365,0.002,89700.0,89699.0,0.1962786]
[1765775548892,0.002,89700.0,89699.0,0.1462786]
[1765775549088,0.002,89700.0,89699.0,0.1962786]
[1765775550090,0.0056822,89727.0,89723.0,0.12525]
[1765775550389,0.12581,89724.0,89723.0,0.12525]
[1765775551184,0.12581,89718.0,89717.0,0.1363963]
[1765775552797,0.13481,89718.0,89717.0,0.1373963]
[1765775553295,0.14381,89718.0,89717.0,0.1383963]
[1765775558400,0.14381,89718.0,89717.0,0.0731463]
[1765775559005,0.14381,89718.0,89717.0,0.1383963]
[1765775560306,0.14381,89718.0,89717.0,0.14959386]
[1765775567009,0.08169,89718.0,89717.0,0.14959386]
[1765775570311,0.14381,89718.0,89717.0,0.14959386]
[1765775570501,0.14381,89718.0,89717.0,0.12725]
[1765775570706,0.14381,89718.0,89717.0,0.002]
[1765775571001,0.20404494,89718.0,89717.0,0.002]
[1765775571208,0.14381,89718.0,89717.0,0.002]
[1765775571508,0.20397504,89718.0,89717.0,0.002]
[1765775574307,0.14381,89718.0,89717.0,0.002]
[1765775577009,0.14381,89718.0,89717.0,0.11629]
[1765775585311,0.018,89718.0,89717.0,0.11629]
[1765775586028,0.07558,89718.0,89717.0,0.11629]
[1765775586221,0.13733,89718.0,89717.0,0.11629]
[1765775589834,0.07558,89718.0,89717.0,0.11629]
[1765775590528,0.13733,89718.0,89717.0,0.11629]
[1765775605431,0.13733,89718.0,89717.0,0.002]
[1765775605929,0.11933,89697.0,89696.0,0.23279]
[1765775606122,0.11933,89697.0,89696.0,0.1254389]
[1765775606523,0.11933,89697.0,89696.0,0.17179487]
[1765775607124,0.11933,89697.0,89696.0,0.1264989]
[1765775608233,0.12033,89697.0,89696.0,0.13779556]
[1765775608430,0.12033,89697.0,89696.0,0.17158556]
[1765775608734,0.11226723,89705.0,89704.0,0.1264979]
[1765775610925,0.11226723,89705.0,89704.0,0.1602879]
[1765775611438,0.11626723,89705.0,89704.0,0.1602879]
[1765775612034,0.11626723,89705.0,89704.0,0.1264979]
[1765775612530,0.02789,89704.0,89700.0,0.0111484]
[1765775612734,0.11679,89701.0,89700.0,0.0111484]
[1765775613625,0.11679,89701.0,89700.0,0.0672884]